[Event "Titled Tuesday Blitz January 03 Late 2023"]
[White "Gaehwiler, Gabriel"]
[Black "Janaszak, Dawid"]
[WhiteFideId "1314530"]
[BlackFideId "1119206"]
[WhiteElo "2404"]
[BlackElo "2316"]
[Result "0-1"]
[Round "02"]
[TimeControl "180+2"]
[Date "2023.01.03"]
[WhiteClock "0:00:16"]
[BlackClock "0:00:08"]

1. d4 {[%clk 0:03:00]}  d5 {[%clk 0:02:59]} 2. c4 {[%clk 0:03:00]}  e6 {[%clk 0:02:59]} 3. Nf3 {[%clk 0:02:52]}  c5 {[%clk 0:02:58]} 4. cxd5 {[%clk 0:02:51]}  exd5 {[%clk 0:02:58]} 5. g3 {[%clk 0:02:51]}  Nf6 {[%clk 0:02:57]} 6. Bg2 {[%clk 0:02:51]}  Nc6 {[%clk 0:02:58]} 7. O-O {[%clk 0:02:51]}  Be7 {[%clk 0:02:57]} 8. dxc5 {[%clk 0:02:50]}  Bxc5 {[%clk 0:02:57]} 9. Nc3 {[%clk 0:02:50]}  O-O {[%clk 0:02:55]} 10. Bg5 {[%clk 0:02:49]}  d4 {[%clk 0:02:33]} 11. Bxf6 {[%clk 0:02:49]}  Qxf6 {[%clk 0:02:33]} 12. Ne4 {[%clk 0:02:49]}  Qe7 {[%clk 0:02:33]} 13. Nxc5 {[%clk 0:02:49]}  Qxc5 {[%clk 0:02:34]} 14. Qd2 {[%clk 0:02:49]}  Bg4 {[%clk 0:02:30]} 15. b4 {[%clk 0:02:47]}  Qb6 {[%clk 0:02:12]} 16. Rab1 {[%clk 0:02:43]}  Rad8 {[%clk 0:02:07]} 17. b5 {[%clk 0:02:35]}  Ne7 {[%clk 0:01:46]} 18. Ne5 {[%clk 0:02:26]}  Bf5 {[%clk 0:01:43]} 19. Rb2 {[%clk 0:02:20]}  Qe6 {[%clk 0:01:25]} 20. Nd3 {[%clk 0:02:08]}  b6 {[%clk 0:01:24]} 21. Nf4 {[%clk 0:02:05]}  Qd6 {[%clk 0:01:16]} 22. Rd1 {[%clk 0:02:03]}  Rfe8 {[%clk 0:01:04]} 23. Rb4 {[%clk 0:01:56]}  Qc5 {[%clk 0:00:47]} 24. a4 {[%clk 0:01:39]}  Ng6 {[%clk 0:00:47]} 25. Rxd4 {[%clk 0:01:34]}  Rc8 {[%clk 0:00:39]} 26. Rd5 {[%clk 0:01:29]}  Qc2 {[%clk 0:00:37]} 27. e3 {[%clk 0:01:15]}  Bg4 {[%clk 0:00:32]} 28. Qxc2 {[%clk 0:01:08]}  Rxc2 {[%clk 0:00:33]} 29. Rd8 {[%clk 0:00:53]}  Kf8 {[%clk 0:00:28]} 30. f3 {[%clk 0:00:27]}  Nxf4 {[%clk 0:00:25]} 31. gxf4 {[%clk 0:00:25]}  Be6 {[%clk 0:00:22]} 32. Bf1 {[%clk 0:00:23]}  Ra2 {[%clk 0:00:20]} 33. e4 {[%clk 0:00:22]}  Rxa4 {[%clk 0:00:18]} 34. f5 {[%clk 0:00:23]}  Bb3 {[%clk 0:00:17]} 35. R1d2 {[%clk 0:00:22]}  Ra1 {[%clk 0:00:15]} 36. Kf2 {[%clk 0:00:22]}  Ke7 {[%clk 0:00:10]} 37. R8d7+ {[%clk 0:00:22]}  Kf8 {[%clk 0:00:09]} 38. Be2 {[%clk 0:00:22]}  h5 {[%clk 0:00:07]} 39. Ke3 {[%clk 0:00:21]}  h4 {[%clk 0:00:07]} 40. Kf4 {[%clk 0:00:22]}  h3 {[%clk 0:00:07]} 41. Kg4 {[%clk 0:00:21]}  Rg1+ {[%clk 0:00:07]} 42. Kh4 {[%clk 0:00:22]}  g6 {[%clk 0:00:07]} 43. fxg6 {[%clk 0:00:21]}  fxg6 {[%clk 0:00:08]} 44. Kxh3 {[%clk 0:00:22]}  Re5 {[%clk 0:00:07]} 45. Rd8+ {[%clk 0:00:20]}  Kg7 {[%clk 0:00:07]} 46. R2d7+ {[%clk 0:00:19]}  Bf7 {[%clk 0:00:08]} 47. f4 {[%clk 0:00:19]}  Rxe4 {[%clk 0:00:08]} 48. Bf3 {[%clk 0:00:15]}  Re3 {[%clk 0:00:08]} 49. Rd6 {[%clk 0:00:15]}  Rxf3+ {[%clk 0:00:08]} 50. Kh4 {[%clk 0:00:15]}  Rxf4+ {[%clk 0:00:08]} 51. Kh3 {[%clk 0:00:16]}  Rf3+ {[%clk 0:00:08]} 52. Kh4 {[%clk 0:00:16]}  g5# {[%clk 0:00:08]} 0-1


[Site "https://www.chess.com"]

[Event "Titled Tuesday Blitz January 03 Late 2023"]
[White "Bayo Milagro, Alvaro"]
[Black "Kravtsiv, Martyn"]
[WhiteFideId "22275240"]
[BlackFideId "14113147"]
[WhiteElo "2287"]
[BlackElo "2598"]
[Result "0-1"]
[Round "02"]
[TimeControl "180+2"]
[Date "2023.01.03"]
[WhiteClock "0:02:31"]
[BlackClock "0:02:46"]

1. d4 {[%clk 0:03:00]}  d5 {[%clk 0:02:59]} 2. c4 {[%clk 0:02:56]}  e6 {[%clk 0:02:59]} 3. Nf3 {[%clk 0:02:55]}  Nf6 {[%clk 0:02:59]} 4. g3 {[%clk 0:02:56]}  Bb4+ {[%clk 0:02:57]} 5. Bd2 {[%clk 0:02:54]}  Be7 {[%clk 0:02:56]} 6. Bg2 {[%clk 0:02:54]}  O-O {[%clk 0:02:56]} 7. O-O {[%clk 0:02:55]}  c6 {[%clk 0:02:57]} 8. Qc2 {[%clk 0:02:55]}  a5 {[%clk 0:02:57]} 9. Rd1 {[%clk 0:02:53]}  b5 {[%clk 0:02:52]} 10. cxd5 {[%clk 0:02:30]}  cxd5 {[%clk 0:02:51]} 11. Nc3 {[%clk 0:02:30]}  b4 {[%clk 0:02:48]} 12. Bf4 {[%clk 0:02:31]}  bxc3 {[%clk 0:02:46]} 0-1


[Site "https://www.chess.com"]

[Event "Titled Tuesday Blitz January 03 Late 2023"]
[White "Mahdavi, Reza"]
[Black "Gschnitzer, Adrian"]
[WhiteFideId "12595926"]
[BlackFideId "1270337"]
[WhiteElo "2339"]
[BlackElo "2432"]
[Result "1-0"]
[Round "02"]
[TimeControl "180+2"]
[Date "2023.01.03"]
[WhiteClock "0:01:15"]
[BlackClock "0:00:03"]

1. e4 {[%clk 0:03:00]}  c5 {[%clk 0:02:58]} 2. Nf3 {[%clk 0:03:01]}  Nc6 {[%clk 0:02:59]} 3. Bb5 {[%clk 0:03:01]}  g6 {[%clk 0:02:58]} 4. O-O {[%clk 0:03:02]}  Bg7 {[%clk 0:02:57]} 5. Re1 {[%clk 0:03:02]}  e5 {[%clk 0:02:54]} 6. Bxc6 {[%clk 0:03:02]}  dxc6 {[%clk 0:02:52]} 7. d3 {[%clk 0:03:03]}  Ne7 {[%clk 0:02:42]} 8. a3 {[%clk 0:03:01]}  a5 {[%clk 0:02:41]} 9. Be3 {[%clk 0:03:00]}  b6 {[%clk 0:02:40]} 10. Nbd2 {[%clk 0:03:01]}  Be6 {[%clk 0:02:38]} 11. b3 {[%clk 0:02:39]}  h6 {[%clk 0:02:37]} 12. Nc4 {[%clk 0:02:30]}  Bxc4 {[%clk 0:02:30]} 13. dxc4 {[%clk 0:02:27]}  O-O {[%clk 0:02:25]} 14. Qc1 {[%clk 0:02:25]}  Kh7 {[%clk 0:02:22]} 15. Rd1 {[%clk 0:02:22]}  Qc7 {[%clk 0:02:19]} 16. Rb1 {[%clk 0:02:10]}  f5 {[%clk 0:02:10]} 17. b4 {[%clk 0:02:07]}  f4 {[%clk 0:01:43]} 18. Bd2 {[%clk 0:02:06]}  g5 {[%clk 0:01:29]} 19. bxc5 {[%clk 0:02:00]}  bxc5 {[%clk 0:01:30]} 20. h3 {[%clk 0:01:56]}  Ng6 {[%clk 0:01:24]} 21. Bc3 {[%clk 0:01:52]}  Rfd8 {[%clk 0:01:21]} 22. Rxd8 {[%clk 0:01:48]}  Rxd8 {[%clk 0:01:22]} 23. Qb2 {[%clk 0:01:49]}  a4 {[%clk 0:01:15]} 24. Qb6 {[%clk 0:01:48]}  Rd1+ {[%clk 0:01:09]} 25. Kh2 {[%clk 0:01:47]}  Qxb6 {[%clk 0:01:09]} 26. Rxb6 {[%clk 0:01:48]}  Rc1 {[%clk 0:01:09]} 27. Rb7 {[%clk 0:01:44]}  Kg8 {[%clk 0:01:01]} 28. Rb8+ {[%clk 0:01:43]}  Kf7 {[%clk 0:00:55]} 29. Rb7+ {[%clk 0:01:40]}  Kg8 {[%clk 0:00:54]} 30. Rb2 {[%clk 0:01:38]}  Kf7 {[%clk 0:00:43]} 31. Ne1 {[%clk 0:01:38]}  Kf6 {[%clk 0:00:24]} 32. Nd3 {[%clk 0:01:37]}  Ra1 {[%clk 0:00:24]} 33. Rb6 {[%clk 0:01:14]}  Rxa3 {[%clk 0:00:21]} 34. Bb2 {[%clk 0:01:14]}  Ra2 {[%clk 0:00:17]} 35. Nc1 {[%clk 0:01:14]}  Rxb2 {[%clk 0:00:15]} 36. Rxb2 {[%clk 0:01:15]}  Nf8 {[%clk 0:00:09]} 37. Nd3 {[%clk 0:01:15]}  Ne6 {[%clk 0:00:08]} 38. Ra2 {[%clk 0:01:15]}  Bf8 {[%clk 0:00:08]} 39. Rxa4 {[%clk 0:01:15]}  Nd4 {[%clk 0:00:08]} 40. c3 {[%clk 0:01:15]}  Ne2 {[%clk 0:00:08]} 41. Ra6 {[%clk 0:01:16]}  Nxc3 {[%clk 0:00:06]} 42. Rxc6+ {[%clk 0:01:16]}  Ke7 {[%clk 0:00:06]} 43. f3 {[%clk 0:01:17]}  Na4 {[%clk 0:00:05]} 44. Nxe5 {[%clk 0:01:17]}  Kd8 {[%clk 0:00:04]} 45. h4 {[%clk 0:01:13]}  gxh4 {[%clk 0:00:03]} 46. Kh3 {[%clk 0:01:14]}  Nb2 {[%clk 0:00:03]} 47. Kxh4 {[%clk 0:01:14]}  Be7+ {[%clk 0:00:02]} 48. Kg4 {[%clk 0:01:13]}  Nd1 {[%clk 0:00:03]} 49. Kf5 {[%clk 0:01:13]}  Ne3+ {[%clk 0:00:04]} 50. Ke6 {[%clk 0:01:14]}  Nxg2 {[%clk 0:00:04]} 51. Nf7+ {[%clk 0:01:14]}  Ke8 {[%clk 0:00:04]} 52. Rc8+ {[%clk 0:01:15]}  Bd8 {[%clk 0:00:03]} 53. Rxd8# {[%clk 0:01:15]} 1-0


[Site "https://www.chess.com"]

[Event "Titled Tuesday Blitz January 03 Late 2023"]
[White "Mendez Fortes, Eduardo Jesus"]
[Black "Yanchenko, Roman"]
[WhiteFideId "3502376"]
[BlackFideId "4137329"]
[WhiteElo "2250"]
[BlackElo "2466"]
[Result "0-1"]
[Round "02"]
[TimeControl "180+2"]
[Date "2023.01.03"]
[WhiteClock "0:00:33"]
[BlackClock "0:01:51"]

1. e4 {[%clk 0:03:00]}  e6 {[%clk 0:03:00]} 2. d4 {[%clk 0:03:00]}  d5 {[%clk 0:03:01]} 3. Nd2 {[%clk 0:03:00]}  c5 {[%clk 0:03:01]} 4. exd5 {[%clk 0:03:00]}  exd5 {[%clk 0:03:02]} 5. Ngf3 {[%clk 0:03:01]}  Nc6 {[%clk 0:03:03]} 6. Bb5 {[%clk 0:03:01]}  c4 {[%clk 0:03:03]} 7. O-O {[%clk 0:02:57]}  Bd6 {[%clk 0:03:04]} 8. b3 {[%clk 0:02:54]}  cxb3 {[%clk 0:03:05]} 9. axb3 {[%clk 0:02:54]}  Ne7 {[%clk 0:03:05]} 10. c4 {[%clk 0:02:51]}  O-O {[%clk 0:03:05]} 11. c5 {[%clk 0:02:51]}  Bc7 {[%clk 0:03:06]} 12. h3 {[%clk 0:02:50]}  a6 {[%clk 0:03:05]} 13. Bd3 {[%clk 0:02:48]}  Bf5 {[%clk 0:03:05]} 14. Bxf5 {[%clk 0:02:17]}  Nxf5 {[%clk 0:03:06]} 15. Bb2 {[%clk 0:02:17]}  Qf6 {[%clk 0:03:05]} 16. Re1 {[%clk 0:01:53]}  Rae8 {[%clk 0:02:44]} 17. Rxe8 {[%clk 0:01:52]}  Rxe8 {[%clk 0:02:45]} 18. Nf1 {[%clk 0:01:52]}  Re4 {[%clk 0:02:41]} 19. Ra4 {[%clk 0:01:24]}  h6 {[%clk 0:02:38]} 20. Qd3 {[%clk 0:01:21]}  Bf4 {[%clk 0:02:11]} 21. g3 {[%clk 0:01:15]}  Bc7 {[%clk 0:02:06]} 22. N1d2 {[%clk 0:01:14]}  Re6 {[%clk 0:02:06]} 23. b4 {[%clk 0:01:05]}  g6 {[%clk 0:02:05]} 24. Kg2 {[%clk 0:00:54]}  Qe7 {[%clk 0:01:58]} 25. b5 {[%clk 0:00:53]}  axb5 {[%clk 0:01:58]} 26. Qxb5 {[%clk 0:00:53]}  Bxg3 {[%clk 0:01:50]} 27. fxg3 {[%clk 0:00:34]}  Re2+ {[%clk 0:01:50]} 28. Kg1 {[%clk 0:00:34]}  Qe3+ {[%clk 0:01:50]} 29. Kh1 {[%clk 0:00:33]}  Nxg3# {[%clk 0:01:51]} 0-1


[Site "https://www.chess.com"]

[Event "Titled Tuesday Blitz January 03 Late 2023"]
[White "Altman, Joshua"]
[Black "Yuan, Qingyu"]
[WhiteFideId "426210"]
[BlackFideId "8609772"]
[WhiteElo "2120"]
[BlackElo "2373"]
[Result "0-1"]
[Round "02"]
[TimeControl "180+2"]
[Date "2023.01.03"]
[WhiteClock "0:00:34"]
[BlackClock "0:00:13"]

1. d4 {[%clk 0:03:00]}  d5 {[%clk 0:02:57]} 2. c4 {[%clk 0:03:01]}  e6 {[%clk 0:02:55]} 3. Nc3 {[%clk 0:03:01]}  Be7 {[%clk 0:02:56]} 4. cxd5 {[%clk 0:03:02]}  exd5 {[%clk 0:02:56]} 5. Nf3 {[%clk 0:03:02]}  c6 {[%clk 0:02:55]} 6. Bf4 {[%clk 0:03:02]}  Bf5 {[%clk 0:02:53]} 7. e3 {[%clk 0:03:01]}  Nd7 {[%clk 0:02:51]} 8. Bd3 {[%clk 0:03:01]}  Bxd3 {[%clk 0:02:51]} 9. Qxd3 {[%clk 0:03:02]}  Ngf6 {[%clk 0:02:50]} 10. h3 {[%clk 0:03:02]}  O-O {[%clk 0:02:46]} 11. O-O {[%clk 0:03:01]}  Ne8 {[%clk 0:02:19]} 12. Rab1 {[%clk 0:02:58]}  Bd6 {[%clk 0:02:14]} 13. Rfc1 {[%clk 0:02:49]}  Qb8 {[%clk 0:02:07]} 14. Bxd6 {[%clk 0:02:42]}  Nxd6 {[%clk 0:02:06]} 15. Nd2 {[%clk 0:02:40]}  Re8 {[%clk 0:01:58]} 16. b4 {[%clk 0:02:39]}  b5 {[%clk 0:01:56]} 17. e4 {[%clk 0:02:28]}  Nb6 {[%clk 0:01:30]} 18. exd5 {[%clk 0:02:22]}  cxd5 {[%clk 0:01:25]} 19. Nxb5 {[%clk 0:02:17]}  Ndc4 {[%clk 0:01:18]} 20. Nc3 {[%clk 0:01:55]}  Qd6 {[%clk 0:01:12]} 21. Nxc4 {[%clk 0:01:38]}  dxc4 {[%clk 0:01:12]} 22. Qd2 {[%clk 0:01:38]}  Rad8 {[%clk 0:01:09]} 23. Rd1 {[%clk 0:01:38]}  h6 {[%clk 0:01:09]} 24. a4 {[%clk 0:01:37]}  Nd5 {[%clk 0:01:03]} 25. Nxd5 {[%clk 0:01:29]}  Qxd5 {[%clk 0:01:04]} 26. Qc3 {[%clk 0:01:28]}  Re4 {[%clk 0:01:02]} 27. Rbc1 {[%clk 0:01:19]}  Rxd4 {[%clk 0:01:01]} 28. Rxd4 {[%clk 0:01:18]}  Qxd4 {[%clk 0:01:02]} 29. Qxc4 {[%clk 0:01:18]}  Qxc4 {[%clk 0:00:39]} 30. Rxc4 {[%clk 0:01:19]}  Rd1+ {[%clk 0:00:39]} 31. Kh2 {[%clk 0:01:18]}  Ra1 {[%clk 0:00:40]} 32. a5 {[%clk 0:01:12]}  Rb1 {[%clk 0:00:39]} 33. Rc8+ {[%clk 0:01:11]}  Kh7 {[%clk 0:00:39]} 34. Rc7 {[%clk 0:01:11]}  f6 {[%clk 0:00:35]} 35. Rb7 {[%clk 0:01:07]}  a6 {[%clk 0:00:34]} 36. Rb6 {[%clk 0:01:06]}  Rb3 {[%clk 0:00:32]} 37. f3 {[%clk 0:01:05]}  Kg6 {[%clk 0:00:31]} 38. Kg3 {[%clk 0:01:02]}  Kf5 {[%clk 0:00:27]} 39. Rb7 {[%clk 0:00:56]}  g5 {[%clk 0:00:23]} 40. Rb6 {[%clk 0:00:54]}  Rb2 {[%clk 0:00:20]} 41. Rxa6 {[%clk 0:00:51]}  Rxb4 {[%clk 0:00:20]} 42. Ra7 {[%clk 0:00:52]}  Ra4 {[%clk 0:00:19]} 43. a6 {[%clk 0:00:49]}  Ra2 {[%clk 0:00:17]} 44. Ra8 {[%clk 0:00:47]}  h5 {[%clk 0:00:17]} 45. a7 {[%clk 0:00:44]}  h4+ {[%clk 0:00:17]} 46. Kh2 {[%clk 0:00:45]}  Ra1 {[%clk 0:00:17]} 47. g4+ {[%clk 0:00:35]}  Kf4 {[%clk 0:00:16]} 48. Rf8 {[%clk 0:00:32]}  Ra2+ {[%clk 0:00:16]} 49. Kg1 {[%clk 0:00:30]}  Rxa7 {[%clk 0:00:16]} 50. Rxf6+ {[%clk 0:00:29]}  Kg3 {[%clk 0:00:16]} 51. Kf1 {[%clk 0:00:29]}  Kxh3 {[%clk 0:00:11]} 52. Rg6 {[%clk 0:00:27]}  Kg3 {[%clk 0:00:10]} 53. Rxg5 {[%clk 0:00:27]}  Kxf3 {[%clk 0:00:07]} 54. Ke1 {[%clk 0:00:25]}  Re7+ {[%clk 0:00:06]} 55. Kd2 {[%clk 0:00:25]}  h3 {[%clk 0:00:05]} 56. Rh5 {[%clk 0:00:22]}  Kg2 {[%clk 0:00:05]} 57. Rh8 {[%clk 0:00:22]}  h2 {[%clk 0:00:05]} 58. g5 {[%clk 0:00:23]}  h1=Q {[%clk 0:00:05]} 59. Rxh1 {[%clk 0:00:24]}  Kxh1 {[%clk 0:00:06]} 60. g6 {[%clk 0:00:25]}  Kg2 {[%clk 0:00:06]} 61. Kd3 {[%clk 0:00:25]}  Rg7 {[%clk 0:00:07]} 62. Kd4 {[%clk 0:00:26]}  Rxg6 {[%clk 0:00:08]} 63. Ke5 {[%clk 0:00:27]}  Rg3 {[%clk 0:00:08]} 64. Kf5 {[%clk 0:00:28]}  Rf3+ {[%clk 0:00:09]} 65. Ke4 {[%clk 0:00:28]}  Kf2 {[%clk 0:00:10]} 66. Kd4 {[%clk 0:00:28]}  Ke2 {[%clk 0:00:11]} 67. Ke4 {[%clk 0:00:29]}  Re3+ {[%clk 0:00:11]} 68. Kd4 {[%clk 0:00:29]}  Kf3 {[%clk 0:00:12]} 69. Kc4 {[%clk 0:00:29]}  Ke4 {[%clk 0:00:12]} 70. Kc5 {[%clk 0:00:29]}  Rd3 {[%clk 0:00:13]} 71. Kc4 {[%clk 0:00:30]}  Rd4+ {[%clk 0:00:12]} 72. Kc5 {[%clk 0:00:30]}  Rd5+ {[%clk 0:00:12]} 73. Kc4 {[%clk 0:00:31]}  Ke5 {[%clk 0:00:13]} 74. Kb4 {[%clk 0:00:31]}  Kd4 {[%clk 0:00:13]} 75. Kb3 {[%clk 0:00:32]}  Rc5 {[%clk 0:00:13]} 76. Kb4 {[%clk 0:00:32]}  Rd5 {[%clk 0:00:12]} 77. Kb3 {[%clk 0:00:33]}  Rb5+ {[%clk 0:00:13]} 78. Ka4 {[%clk 0:00:33]}  Kc4 {[%clk 0:00:12]} 79. Ka3 {[%clk 0:00:34]}  Kc3 {[%clk 0:00:12]} 80. Ka4 {[%clk 0:00:34]}  Rc5 {[%clk 0:00:13]} 81. Ka3 {[%clk 0:00:34]}  Ra5# {[%clk 0:00:13]} 0-1


[Site "https://www.chess.com"]

[Event "Titled Tuesday Blitz January 03 Late 2023"]
[White "Avila Pavas, Santiago"]
[Black "Erzhanov, Arman"]
[WhiteFideId "4437128"]
[BlackFideId "4138821"]
[WhiteElo "2522"]
[BlackElo "2228"]
[Result "0-1"]
[Round "02"]
[TimeControl "180+2"]
[Date "2023.01.03"]
[WhiteClock "0:00:32"]
[BlackClock "0:01:14"]

1. d4 {[%clk 0:03:00]}  d6 {[%clk 0:03:00]} 2. e4 {[%clk 0:03:00]}  Nf6 {[%clk 0:02:59]} 3. Nc3 {[%clk 0:03:01]}  e5 {[%clk 0:03:00]} 4. Nf3 {[%clk 0:03:00]}  Nbd7 {[%clk 0:02:57]} 5. h3 {[%clk 0:03:00]}  Be7 {[%clk 0:02:54]} 6. g4 {[%clk 0:02:59]}  h6 {[%clk 0:02:49]} 7. Be3 {[%clk 0:02:59]}  c6 {[%clk 0:02:48]} 8. Qd2 {[%clk 0:02:58]}  b5 {[%clk 0:02:46]} 9. a3 {[%clk 0:02:56]}  Bb7 {[%clk 0:02:41]} 10. Rg1 {[%clk 0:02:50]}  a5 {[%clk 0:02:39]} 11. g5 {[%clk 0:02:38]}  hxg5 {[%clk 0:02:39]} 12. Nxg5 {[%clk 0:02:39]}  b4 {[%clk 0:02:37]} 13. Ne2 {[%clk 0:02:30]}  g6 {[%clk 0:02:34]} 14. Ng3 {[%clk 0:02:15]}  bxa3 {[%clk 0:02:27]} 15. bxa3 {[%clk 0:02:07]}  d5 {[%clk 0:02:24]} 16. dxe5 {[%clk 0:01:56]}  Nxe5 {[%clk 0:02:22]} 17. f4 {[%clk 0:01:56]}  Nh7 {[%clk 0:02:03]} 18. Qc3 {[%clk 0:01:06]}  Nxg5 {[%clk 0:02:00]} 19. fxg5 {[%clk 0:01:03]}  Nf3+ {[%clk 0:01:55]} 20. Kf2 {[%clk 0:01:04]}  d4 {[%clk 0:01:53]} 21. Qb2 {[%clk 0:01:04]}  Nxg1 {[%clk 0:01:51]} 22. Kxg1 {[%clk 0:01:02]}  c5 {[%clk 0:01:50]} 23. Qxb7 {[%clk 0:00:52]}  dxe3 {[%clk 0:01:49]} 24. Qc6+ {[%clk 0:00:45]}  Kf8 {[%clk 0:01:50]} 25. Bc4 {[%clk 0:00:46]}  Rc8 {[%clk 0:01:46]} 26. Qb7 {[%clk 0:00:41]}  Rb8 {[%clk 0:01:42]} 27. Qa7 {[%clk 0:00:39]}  Qb6 {[%clk 0:01:21]} 28. Qd7 {[%clk 0:00:35]}  Qd6 {[%clk 0:01:19]} 29. Qg4 {[%clk 0:00:35]}  Qd4 {[%clk 0:01:17]} 30. Rf1 {[%clk 0:00:32]}  e2+ {[%clk 0:01:14]} 0-1


[Site "https://www.chess.com"]

[Event "Titled Tuesday Blitz January 03 Late 2023"]
[White "Danielyan, Vahe"]
[Black "Borges Feria, Yasel"]
[WhiteFideId "13304828"]
[BlackFideId "3504921"]
[WhiteElo "2346"]
[BlackElo "2439"]
[Result "0-1"]
[Round "02"]
[TimeControl "180+2"]
[Date "2023.01.03"]
[WhiteClock "0:00:02"]
[BlackClock "0:00:08"]

1. e4 {[%clk 0:02:58]}  c6 {[%clk 0:02:59]} 2. d4 {[%clk 0:02:56]}  d5 {[%clk 0:02:59]} 3. exd5 {[%clk 0:02:57]}  cxd5 {[%clk 0:03:00]} 4. Bd3 {[%clk 0:02:56]}  Nc6 {[%clk 0:03:00]} 5. c3 {[%clk 0:02:56]}  g6 {[%clk 0:02:56]} 6. Nf3 {[%clk 0:02:55]}  Bg7 {[%clk 0:02:54]} 7. O-O {[%clk 0:02:55]}  Nf6 {[%clk 0:02:54]} 8. Bf4 {[%clk 0:02:55]}  Bf5 {[%clk 0:02:50]} 9. Bxf5 {[%clk 0:02:55]}  gxf5 {[%clk 0:02:50]} 10. Ne5 {[%clk 0:02:56]}  e6 {[%clk 0:02:47]} 11. Nxc6 {[%clk 0:02:55]}  bxc6 {[%clk 0:02:48]} 12. Nd2 {[%clk 0:02:56]}  O-O {[%clk 0:02:47]} 13. a4 {[%clk 0:02:55]}  Ne4 {[%clk 0:02:35]} 14. Nb3 {[%clk 0:02:52]}  a5 {[%clk 0:01:58]} 15. f3 {[%clk 0:02:49]}  Nf6 {[%clk 0:01:55]} 16. Nc5 {[%clk 0:02:47]}  Nd7 {[%clk 0:01:49]} 17. Nd3 {[%clk 0:02:46]}  Kh8 {[%clk 0:01:15]} 18. Kh1 {[%clk 0:02:45]}  Rg8 {[%clk 0:01:09]} 19. Qd2 {[%clk 0:02:33]}  Bf6 {[%clk 0:01:03]} 20. Rg1 {[%clk 0:01:49]}  Qe7 {[%clk 0:00:59]} 21. Raf1 {[%clk 0:01:48]}  c5 {[%clk 0:00:52]} 22. Ne5 {[%clk 0:01:34]}  Nxe5 {[%clk 0:00:47]} 23. dxe5 {[%clk 0:01:33]}  Bg5 {[%clk 0:00:46]} 24. Bxg5 {[%clk 0:01:21]}  Qxg5 {[%clk 0:00:47]} 25. f4 {[%clk 0:01:22]}  Qe7 {[%clk 0:00:42]} 26. Rf3 {[%clk 0:01:23]}  Rab8 {[%clk 0:00:40]} 27. Qf2 {[%clk 0:01:21]}  c4 {[%clk 0:00:39]} 28. Rh3 {[%clk 0:01:19]}  Rg6 {[%clk 0:00:38]} 29. Rh5 {[%clk 0:01:06]}  h6 {[%clk 0:00:32]} 30. g4 {[%clk 0:00:58]}  fxg4 {[%clk 0:00:24]} 31. f5 {[%clk 0:00:59]}  exf5 {[%clk 0:00:25]} 32. Rxf5 {[%clk 0:00:58]}  Rbg8 {[%clk 0:00:23]} 33. Qd4 {[%clk 0:00:51]}  Qe6 {[%clk 0:00:22]} 34. Qf4 {[%clk 0:00:24]}  R8g7 {[%clk 0:00:19]} 35. Rg3 {[%clk 0:00:22]}  Kh7 {[%clk 0:00:19]} 36. Kg2 {[%clk 0:00:13]}  Qc6 {[%clk 0:00:19]} 37. Qd4 {[%clk 0:00:11]}  Qxa4 {[%clk 0:00:20]} 38. Qxd5 {[%clk 0:00:09]}  Qe8 {[%clk 0:00:14]} 39. Qe4 {[%clk 0:00:09]}  Qc6 {[%clk 0:00:14]} 40. Rf4 {[%clk 0:00:08]}  Qxe4+ {[%clk 0:00:14]} 41. Rxe4 {[%clk 0:00:09]}  Re6 {[%clk 0:00:14]} 42. Kf2 {[%clk 0:00:08]}  h5 {[%clk 0:00:14]} 43. Ke3 {[%clk 0:00:07]}  Rg5 {[%clk 0:00:14]} 44. Kf4 {[%clk 0:00:07]}  Kg6 {[%clk 0:00:15]} 45. Rxc4 {[%clk 0:00:04]}  Rf5+ {[%clk 0:00:15]} 46. Ke3 {[%clk 0:00:04]}  Rexe5+ {[%clk 0:00:16]} 47. Kd3 {[%clk 0:00:03]}  Rb5 {[%clk 0:00:16]} 48. b4 {[%clk 0:00:03]}  axb4 {[%clk 0:00:15]} 49. cxb4 {[%clk 0:00:04]}  Rbd5+ {[%clk 0:00:15]} 50. Ke3 {[%clk 0:00:03]}  Rde5+ {[%clk 0:00:15]} 51. Kd3 {[%clk 0:00:03]}  Rf1 {[%clk 0:00:15]} 52. Kd4 {[%clk 0:00:03]}  Ref5 {[%clk 0:00:14]} 53. Rc7 {[%clk 0:00:02]}  R1f4+ {[%clk 0:00:14]} 54. Kc3 {[%clk 0:00:02]}  Rf3+ {[%clk 0:00:14]} 55. Kc4 {[%clk 0:00:02]}  Rxg3 {[%clk 0:00:14]} 56. hxg3 {[%clk 0:00:03]}  h4 {[%clk 0:00:14]} 57. b5 {[%clk 0:00:04]}  hxg3 {[%clk 0:00:14]} 58. Kd3 {[%clk 0:00:01]}  Rf3+ {[%clk 0:00:14]} 59. Ke2 {[%clk 0:00:01]}  Rb3 {[%clk 0:00:14]} 60. Kf1 {[%clk 0:00:01]}  Rxb5 {[%clk 0:00:12]} 61. Kg2 {[%clk 0:00:02]}  Kg5 {[%clk 0:00:11]} 62. Kxg3 {[%clk 0:00:02]}  Rb3+ {[%clk 0:00:12]} 63. Kg2 {[%clk 0:00:01]}  f5 {[%clk 0:00:12]} 64. Rc4 {[%clk 0:00:01]}  Rb2+ {[%clk 0:00:08]} 65. Rc2 {[%clk 0:00:02]}  Rxc2+ {[%clk 0:00:08]} 66. Kg3 {[%clk 0:00:02]}  f4# {[%clk 0:00:08]} 0-1


[Site "https://www.chess.com"]

[Event "Titled Tuesday Blitz January 03 Late 2023"]
[White "Roberson, Peter T"]
[Black "Kadric, Denis"]
[WhiteFideId "412384"]
[BlackFideId "14403803"]
[WhiteElo "2430"]
[BlackElo "2601"]
[Result "0-1"]
[Round "02"]
[TimeControl "180+2"]
[Date "2023.01.03"]
[WhiteClock "0:00:02"]
[BlackClock "0:00:27"]

1. e4 {[%clk 0:03:00]}  d6 {[%clk 0:02:55]} 2. d4 {[%clk 0:03:00]}  Nf6 {[%clk 0:02:55]} 3. Nc3 {[%clk 0:03:01]}  e5 {[%clk 0:02:55]} 4. Nf3 {[%clk 0:02:57]}  Nbd7 {[%clk 0:02:55]} 5. Bc4 {[%clk 0:02:55]}  Be7 {[%clk 0:02:56]} 6. a4 {[%clk 0:02:55]}  O-O {[%clk 0:02:56]} 7. h3 {[%clk 0:02:55]}  c6 {[%clk 0:02:56]} 8. O-O {[%clk 0:02:52]}  h6 {[%clk 0:02:56]} 9. Be3 {[%clk 0:02:47]}  Re8 {[%clk 0:02:54]} 10. Nh4 {[%clk 0:02:41]}  exd4 {[%clk 0:02:52]} 11. Qxd4 {[%clk 0:02:39]}  Ne5 {[%clk 0:02:52]} 12. Ba2 {[%clk 0:02:36]}  Nh7 {[%clk 0:02:48]} 13. Nf5 {[%clk 0:02:33]}  Bxf5 {[%clk 0:02:48]} 14. exf5 {[%clk 0:02:34]}  Bf6 {[%clk 0:02:47]} 15. Qd2 {[%clk 0:02:31]}  d5 {[%clk 0:02:47]} 16. Bd4 {[%clk 0:02:26]}  Qd7 {[%clk 0:02:45]} 17. Qf4 {[%clk 0:01:35]}  Re7 {[%clk 0:02:31]} 18. Rad1 {[%clk 0:01:20]}  a6 {[%clk 0:02:30]} 19. Bc5 {[%clk 0:01:07]}  Ree8 {[%clk 0:02:30]} 20. Ne4 {[%clk 0:01:02]}  Bg5 {[%clk 0:02:25]} 21. Nxg5 {[%clk 0:00:59]}  hxg5 {[%clk 0:02:25]} 22. Qb4 {[%clk 0:00:50]}  a5 {[%clk 0:02:05]} 23. Qd2 {[%clk 0:00:46]}  Qxf5 {[%clk 0:02:03]} 24. c3 {[%clk 0:00:35]}  g4 {[%clk 0:01:55]} 25. Bb1 {[%clk 0:00:32]}  Qh5 {[%clk 0:01:54]} 26. hxg4 {[%clk 0:00:31]}  Nxg4 {[%clk 0:01:55]} 27. Qf4 {[%clk 0:00:31]}  Nhf6 {[%clk 0:01:49]} 28. Rfe1 {[%clk 0:00:29]}  Ne5 {[%clk 0:01:35]} 29. Bd4 {[%clk 0:00:21]}  Ng6 {[%clk 0:01:18]} 30. Qc7 {[%clk 0:00:13]}  Ne4 {[%clk 0:01:04]} 31. f3 {[%clk 0:00:09]}  Ng5 {[%clk 0:00:53]} 32. Qg3 {[%clk 0:00:02]}  Qh4 {[%clk 0:00:27]} 0-1


[Site "https://www.chess.com"]